[Event "44th Chess Olympiad Open 2022"]
[Site "Chennai"]
[Date "2022.08.01"]
[Round "4.41"]
[White "Keinanen, Toivo"]
[Black "Nezad Husein Aziz"]
[Result "1-0"]
[WhiteElo "2477"]
[BlackElo "2412"]
[Annotator "TA"]
[PlyCount "119"]
[EventDate "2022.??.??"]
[TimeControl "60"]

{[%evp 9,119,13,12,12,4,15,15,10,15,10,12,5,13,0,0,0,9,0,0,0,-13,-2,-14,-16,0,
0,0,0,0,0,26,36,23,21,29,22,33,29,33,29,41,41,42,32,47,19,20,22,38,11,15,16,62,
45,60,56,42,66,55,15,15,15,116,108,99,85,99,103,64,64,79,70,71,102,107,100,100,
72,67,58,58,0,24,35,259,242,83,8,8,19,42,0,8,12,12,8,12,0,0,0,343,343,2362,
2077,1311,1110,29966,29968,5336,10350,29988,833]} 1. d4 {[%emt 0:00:01]} d5 {
[%emt 0:00:11]} 2. Nf3 {[%emt 0:00:42]} Nf6 {[%emt 0:00:11]} 3. e3 {[%emt 0:00:
00]} c5 {[%emt 0:01:29]} 4. Be2 {[%emt 0:00:07]} Nc6 {[%emt 0:01:52]} 5. O-O {
[%emt 0:00:06]} Bg4 {[%emt 0:01:34]} 6. h3 {[%emt 0:04:47] D04: Colle System.}
Bh5 {[%emt 0:00:47]} 7. dxc5 {[%emt 0:00:03]} e6 {[%emt 0:01:30]} 8. a3 {
[%emt 0:00:01] The position is equal.} Bxc5 {[%emt 0:05:28]} 9. b4 {[%emt 0:00:
00]} Be7 {[%emt 0:02:14]} 10. Bb2 {[%emt 0:01:57]} O-O {[%emt 0:00:09]} 11.
Nbd2 {[%emt 0:00:40]} a5 {[%emt 0:02:54]} 12. b5 {[%emt 0:02:22]} Nb8 {[%emt 0:
00:00][%cal Yc6b8,Yb8d7,Yd7c5,Yc5d3]} 13. c4 {[%emt 0:02:05]} Nbd7 {[%emt 0:00:
03] [#]} 14. a4 $146 {[%emt 0:08:15]} ({Predecessor:} 14. Rc1 a4 15. cxd5 exd5
16. Nb1 {½-½ (16) Kurtenkov,A (2453)-Gusev,O (2503) ICCF email 2019}) 14...
Bb4 {[%emt 0:02:38]} 15. cxd5 {[%emt 0:10:03]} Nxd5 {[%emt 0:02:27]} 16. Nc4 {
[%emt 0:06:12]} Qe7 {[%emt 0:06:15]} 17. Nfe5 {[%emt 0:11:06]} Bxe2 {[%emt 0:
22:24]} 18. Qxe2 {[%emt 0:00:13]} Nc5 {[%emt 0:00:12]} 19. Nd3 {[%emt 0:07:26]}
Nxd3 {[%emt 0:05:57]} 20. Qxd3 {[%emt 0:01:59]} Rfd8 {[%emt 0:00:00][%cal
Yd5c3]} 21. Qb3 {[%emt 0:01:54] Against Nc3} Rac8 {[%emt 0:01:01]} 22. Rfd1 {
[%emt 0:04:12]} h6 {[%emt 0:01:50]} 23. Rac1 {[%emt 0:01:42]} Nf6 {[%emt 0:05:
00][%cal Yd5f6,Yf6e4,Ye4c5,Yc5d3]} 24. Ne5 {[%emt 0:13:40]} Rxd1+ {[%emt 0:14:
28]} 25. Qxd1 {[%emt 0:02:50]} Rd8 {[%emt 0:00:17]} 26. Qb3 {[%emt 0:00:35]}
Ne4 {[%emt 0:03:23][%cal Ye4f2]} 27. Qc2 {[%emt 0:02:54]} Nc5 {[%emt 0:02:13]}
28. Bd4 {[%emt 0:01:19][%cal Rd4c5]} Rd5 {[%emt 0:00:26]} 29. Nd3 {[%emt 0:04:
22]} Nxd3 {[%emt 0:00:08]} 30. Qxd3 {[%emt 0:00:02] And now Rc8+ would win.}
Qd7 {[%emt 0:04:08] Inhibits Rc8+.} (30... Bc5 $11) 31. Qc4 {[%emt 0:03:41]
White is more active.} e5 {[%emt 0:00:51]} 32. Qc8+ {[%emt 0:00:00]} Qxc8 {
[%emt 0:00:16]} 33. Rxc8+ $14 {[%emt 0:00:01] Endgame KRB-KRB} Kh7 {[%emt 0:00:
01]} 34. Bb6 {[%emt 0:01:04]} (34. Ba7 $5 {[%cal Rc8c7]}) 34... Rd1+ {[%emt 0:
05:41]} 35. Kh2 {[%emt 0:00:02]} e4 {[%emt 0:00:00]} (35... f6 $11 {keeps the
balance.}) 36. g3 {[%emt 0:05:12]} Rd2 {[%emt 0:00:00]} 37. Kg2 {[%emt 0:00:42]
} Ra2 {[%emt 0:00:14]} 38. Rc7 {[%emt 0:00:30][%csl Yb7,Yf7]} Kg6 {[%emt 0:00:
31]} 39. Rxb7 {[%emt 0:03:10]} Be1 {[%emt 0:00:00]} 40. Kf1 {[%emt 0:02:00]}
Bxf2 {[%emt 0:03:04]} 41. Re7 $1 {[%emt 0:00:00]} Bxg3 {[%emt 0:09:01]} 42.
Rxe4 {[%emt 0:01:09] Hoping for Rg4+.} f5 {[%emt 0:03:53] Against Rg4+} 43. Rc4
{[%emt 0:05:31]} Kh5 {[%emt 0:01:33]} 44. Bxa5 {[%emt 0:06:15]} g5 $1 {[%emt 0:
00:06]} 45. Bd8 {[%emt 0:10:56]} (45. Bb6 $14 Rf2+ 46. Kg1) 45... Rf2+ {
[%emt 0:02:54]} 46. Kg1 {[%emt 0:00:12] Strongly threatening Bc7.} Rb2 $2 {
[%emt 0:00:06] [#]} ({Black should play} 46... Ra2 $14) 47. Bf6 $1 $18 {
[%emt 0:02:58]} Rd2 {[%emt 0:09:13]} 48. b6 {[%emt 0:00:00]} (48. Bc3 $16 Rc2
49. Rc6) 48... f4 $11 {[%emt 0:01:03]} 49. exf4 {[%emt 0:00:00]} Kh4 {[%emt 0:
00:13]} 50. Rc3 {[%emt 0:04:07]} Bf2+ {[%emt 0:06:17]} 51. Kf1 {[%emt 0:00:28]}
Bxb6 {[%emt 0:00:07]} 52. fxg5 {[%emt 0:00:38]} hxg5 {[%emt 0:00:13] aiming
for ...Rf2+.} 53. Be5 {[%emt 0:01:04]} Rf2+ {[%emt 0:00:00]} 54. Ke1 {[%emt 0:
00:07] Bg3+ is the strong threat.} Rg2 {[%emt 0:01:06] [#] Prevents Bg3+.} (
54... Ra2 $11 {and Black stays safe.} 55. Bg3+ Kh5) 55. Rc6 $1 $18 {[%emt 0:00:
36][%cal Rc6h6]} Rg1+ $2 {[%emt 0:01:29]} (55... g4 56. Rxb6 gxh3) 56. Ke2 {
[%emt 0:00:11][%cal Rc6h6]} Rg2+ {[%emt 0:00:00]} 57. Kd3 {[%emt 0:00:36][%cal
Rc6h6]} Kxh3 {[%emt 0:02:29]} 58. Rxb6 {[%emt 0:00:17]} Ra2 {[%emt 0:00:08]}
59. Ra6 {[%emt 0:00:20] White threatens Ra8 and mate.} g4 {[%emt 0:00:05]} 60.
Rh6+ {[%emt 0:00:38] Weighted Error Value: White=0.08 (flawless) /Black=0.46}
1-0

[Event "44th Chess Olympiad Open 2022"]
[Site "Chennai"]
[Date "2022.08.01"]
[Round "4.41"]
[White "Nyysti, Sampsa"]
[Black "Yousuf M M Al Mutawa"]
[Result "1-0"]
[WhiteElo "2363"]
[BlackElo "2120"]
[Annotator "TA"]
[PlyCount "101"]
[EventDate "2022.??.??"]
[TimeControl "60"]

{[%evp 13,101,6,33,35,30,29,45,53,89,72,90,88,102,93,143,96,122,89,100,85,116,
102,116,125,112,74,184,68,85,68,107,91,88,77,74,62,111,100,102,94,118,110,116,
106,132,140,138,154,182,167,185,182,202,200,436,436,444,420,436,409,555,544,
737,769,787,750,841,810,1297,1297,4155,3464,3053,3075,2433,2396,29980,29981,
29992,29993,29993,29994,29994,29995,29995,29996,29996,29997,29997,29997]} 1. e4
{[%emt 0:00:03]} e6 {[%emt 0:00:05]} 2. d4 {[%emt 0:00:10]} d5 {[%emt 0:00:14]}
3. e5 {[%emt 0:00:53]} c5 {[%emt 0:00:34]} 4. c3 {[%emt 0:00:02]} Nc6 {[%emt 0:
00:00]} 5. Nf3 {[%emt 0:00:03]} cxd4 {[%emt 0:02:48]} 6. cxd4 {[%emt 0:00:42]}
Bb4+ {[%emt 0:00:22] 6...Nge7 gains popularity.} 7. Bd2 {[%emt 0:01:17]} Bxd2+
{[%emt 0:00:43]} 8. Qxd2 {[%emt 0:00:10] C02: French: Advance Variation.} Nge7
{[%emt 0:00:22]} 9. Nc3 {[%emt 0:00:33]} a6 {[%emt 0:02:58]} 10. Bd3 {[%emt 0:
00:00] White is slightly better.} b5 {[%emt 0:00:53]} 11. O-O {[%emt 0:01:14] 
[#]} Ng6 $146 {[%emt 0:08:09]} ({Predecessor:} 11... Bd7 12. Qg5 Qb6 13. Ne2
O-O-O 14. a4 b4 15. a5 Qa7 16. Nc1 f6 17. Qxg7 Rhg8 {1-0 (31) Slaby,J (2453)
-Garcia Blanco,O (2044) La Laguna 2007}) 12. g3 {[%emt 0:00:54]} f5 {[%emt 0:
00:00]} 13. h4 {[%emt 0:04:28][%cal Yh2h4,Yh4h5]} Bd7 {[%emt 0:03:52]} ({
Better is} 13... h6) 14. Ne2 {[%emt 0:08:57]} (14. h5 $142 Nge7 15. h6) 14...
O-O {[%emt 0:16:14]} 15. Kg2 {[%emt 0:04:00]} Qa5 {[%emt 0:09:28]} 16. Qe3 {
[%emt 0:01:49]} Nb4 {[%emt 0:06:02]} 17. Bb1 {[%emt 0:04:30]} Rac8 {[%emt 0:00:
00]} 18. h5 {[%emt 0:02:48]} Nh8 {[%emt 0:01:27]} 19. Nc3 {[%emt 0:06:42][%cal
Yg3g4]} Qb6 {[%emt 0:05:51] [#]} (19... Nf7 $16 {is a better defense.}) 20. Rh1
{[%emt 0:02:31]} (20. g4 $1 $18) 20... Nc6 {[%emt 0:02:30]} 21. Rh4 {[%emt 0:
00:00]} Ne7 {[%emt 0:02:40]} 22. Bd3 {[%emt 0:04:38]} Nf7 {[%emt 0:01:59]} 23.
Ne2 {[%emt 0:20:59][%cal Yh5h6,Yc3e2,Ye2f4,Yf4d3,Yd3c5]} Nh6 {[%emt 0:00:00]}
24. Qg5 {[%emt 0:06:29]} Qd8 {[%emt 0:01:23] Black is on the road to losing.} (
24... Nc6 $14) 25. Qd2 $16 {[%emt 0:00:16]} Nc6 {[%emt 0:04:35]} 26. Nf4 {
[%emt 0:01:26]} Qe7 {[%emt 0:02:43]} 27. a3 {[%emt 0:00:21]} Qd8 {[%emt 0:00:
00]} 28. b4 {[%emt 0:03:14] White is more active.} Qb6 {[%emt 0:00:43]} 29. Be2
{[%emt 0:03:31]} Rc7 {[%emt 0:02:48]} 30. Nd3 {[%emt 0:00:26]} Bc8 {[%emt 0:02:
55]} 31. Nc5 {[%emt 0:00:20]} a5 {[%emt 0:01:57]} 32. Rb1 {[%emt 0:00:00]} axb4
{[%emt 0:02:04]} 33. axb4 {[%emt 0:00:01]} f4 $2 {[%emt 0:02:15]} (33... Ra7
34. Ng5 Nb8) 34. Rxf4 $18 {[%emt 0:00:24]} Rxf4 {[%emt 0:00:40]} 35. Qxf4 {
[%emt 0:00:23]} Rf7 {[%emt 0:00:14]} 36. Qd2 {[%emt 0:00:33]} Nf5 {[%emt 0:00:
27]} 37. g4 {[%emt 0:02:50]} Nfe7 {[%emt 0:02:12]} 38. Ng5 {[%emt 0:00:00]
[%csl Ye6,Yf7]} Rf8 {[%emt 0:00:33]} 39. Qd3 {[%emt 0:02:35][%csl Gg5][%cal
Rd3h7]} g6 {[%emt 0:00:26]} 40. Qh3 {[%emt 0:00:39] White threatens hxg6 and
mate.} Qa7 {[%emt 0:02:29] [#]} 41. Nxh7 $1 {[%emt 0:35:06]} Kxh7 {[%emt 0:10:
35]} (41... Rd8 42. Bd3) 42. hxg6+ {[%emt 0:00:00]} Kxg6 {[%emt 0:00:00]} 43.
Bd3+ {[%emt 0:00:00]} Nf5 {[%emt 0:00:35]} 44. gxf5+ {[%emt 0:00:00]} exf5 {
[%emt 0:02:37]} 45. Kh2 {[%emt 0:00:00] White mates.} Qa2 {[%emt 0:00:00]} 46.
Rg1+ {[%emt 0:00:00]} Kf7 {[%emt 0:00:09]} 47. Qh5+ {[%emt 0:00:00]} Ke7 {
[%emt 0:00:20]} 48. Rg7+ {[%emt 0:00:00]} Kd8 {[%emt 0:00:17]} 49. Qg5+ {
[%emt 0:00:00]} Ke8 {[%emt 0:00:23]} 50. Qg6+ {[%emt 0:00:00]} Kd8 {[%emt 0:00:
00]} 51. Qd6+ {[%emt 0:00:00] Weighted Error Value: White=0.10 (very precise) /
Black=0.54} 1-0

[Event "44th Chess Olympiad Open 2022"]
[Site "Chennai"]
[Date "2022.08.01"]
[Round "4.41"]
[White "Al-Sulaiti, Ghanem"]
[Black "Sipila, Vilka"]
[Result "1/2-1/2"]
[WhiteElo "2183"]
[BlackElo "2416"]
[Annotator "TA"]
[PlyCount "112"]
[EventDate "2022.??.??"]
[TimeControl "60"]

{[%evp 14,112,-14,-8,-13,-6,0,-10,-2,-19,54,58,59,45,47,49,69,73,84,34,34,22,
23,31,52,52,52,51,54,54,54,53,50,50,51,50,50,49,56,51,65,50,65,58,65,50,65,50,
64,54,41,0,0,0,0,0,0,0,0,0,0,0,0,0,0,0,108,100,125,10,47,12,131,69,66,0,0,0,0,
0,2,0,18,17,56,56,56,56,56,56,56,56,56,25,53,0,55,0,53,0,53]} 1. e4 {[%emt 0:
00:00]} e6 {[%emt 0:00:04]} 2. d4 {[%emt 0:00:08]} d5 {[%emt 0:00:03]} 3. Nc3 {
[%emt 0:00:05][%cal Yb1c3,Yc3b5,Yb5d6]} Bb4 {[%emt 0:00:04]} 4. e5 {[%emt 0:01:
41]} c5 {[%emt 0:00:11]} 5. Bd2 {[%emt 0:00:37]} Ne7 {[%emt 0:01:23]} 6. Nb5 {
[%emt 0:02:12]} Bxd2+ {[%emt 0:01:04]} 7. Qxd2 {[%emt 0:00:07]} O-O {[%emt 0:
01:03]} 8. c3 {[%emt 0:04:27]} a6 {[%emt 0:01:09] C17: French: 3 Nc3 Bb4 4 e5
c5 sidelines.} 9. Nd6 {[%emt 0:00:29]} cxd4 {[%emt 0:00:59]} 10. cxd4 {[%emt 0:
02:01]} Nbc6 {[%emt 0:01:02]} 11. f4 {[%emt 0:00:21]} Nf5 {[%emt 0:00:00]} (
11... Qb6 $11) 12. Nxf5 $14 {[%emt 0:02:58]} exf5 {[%emt 0:00:06]} 13. Nf3 {
[%emt 0:01:49]} Be6 {[%emt 0:02:25]} 14. Be2 {[%emt 0:00:27] [#]} a5 $146 {
[%emt 0:06:43]} ({Predecessor:} 14... Rc8 15. Rc1 Qa5 16. Qxa5 Nxa5 17. Kf2 Nc4
18. b3 Na3 19. Bd3 a5 20. Ke3 Rxc1 21. Rxc1 Rc8 22. Kd2 Rxc1 23. Kxc1 b5 24.
Ng5 b4 25. Nxe6 fxe6 26. h3 {½-½ (26) Shalamberidze,A (2406)-Avetisian,M 
(2332) Rustavi 2014}) 15. O-O {[%emt 0:00:34]} a4 {[%emt 0:01:11]} 16. Bb5 {
[%emt 0:06:40]} (16. Rac1 $16) 16... Na5 {[%emt 0:05:26]} 17. Bxa4 {[%emt 0:00:
00]} Nc4 {[%emt 0:06:12][%csl Ya4,Yd2]} 18. Qb4 {[%emt 0:05:17]} Qa5 {[%emt 0:
01:41]} 19. Qxa5 {[%emt 0:01:47]} Rxa5 {[%emt 0:00:25]} 20. Bc2 {[%emt 0:40:43]
} Rfa8 {[%emt 0:07:58]} 21. a4 {[%emt 0:05:52]} Ne3 {[%emt 0:00:00]} 22. Rfc1 {
[%emt 0:00:42]} Nxc2 {[%emt 0:02:19]} 23. Rxc2 {[%emt 0:00:05]} Rxa4 {[%emt 0:
00:47]} 24. Rxa4 {[%emt 0:01:24]} Rxa4 {[%emt 0:00:06] Endgame KRB-KRN} 25. Kf2
{[%emt 0:01:27]} Kf8 {[%emt 0:02:02]} 26. Ke3 {[%emt 0:00:21]} h6 {[%emt 0:01:
09]} 27. Kd3 {[%emt 0:02:33]} Ke8 {[%emt 0:00:00]} 28. Rc3 {[%emt 0:05:23]} Bd7
{[%emt 0:03:45]} 29. Ra3 {[%emt 0:01:33] Inhibits Ra1.} Bb5+ {[%emt 0:01:15]}
30. Kc2 {[%emt 0:02:26]} Rc4+ {[%emt 0:00:00]} 31. Rc3 {[%emt 0:01:12]} Rb4 {
[%emt 0:00:07]} 32. Rc5 {[%emt 0:02:20]} Ba4+ {[%emt 0:01:37]} 33. Kc1 {
[%emt 0:00:01]} Bc6 {[%emt 0:00:13]} 34. Kc2 {[%emt 0:00:33]} Ra4 {[%emt 0:01:
45]} 35. Kb3 {[%emt 0:01:30][%cal Yc5c6]} Ra1 {[%emt 0:00:49]} 36. Kb4 {
[%emt 0:00:12]} Kd7 {[%emt 0:01:23]} 37. Rc2 {[%emt 0:00:00]} Rd1 {[%emt 0:01:
19]} 38. b3 {[%emt 0:00:42]} Kc7 {[%emt 0:01:09]} 39. Ra2 {[%emt 0:00:38]} Rd3
{[%emt 0:00:39]} (39... Bd7 $11 {keeps the balance.}) 40. Ra8 $1 $16 {[%emt 0:
01:12]} Bd7 {[%emt 0:10:47][%cal Yg7g5]} 41. Rg8 {[%emt 0:11:59]} ({White
should try} 41. Rh8 $1 $16 {[%cal Rh8h7]}) 41... g6 $11 {[%emt 0:00:55]} 42.
Rh8 {[%emt 0:00:46]} (42. h4 $5 {[%cal Rh4h5]}) 42... g5 {[%emt 0:00:29] [#]} (
42... h5 $11) 43. fxg5 {[%emt 0:01:20]} (43. Rxh6 g4 44. Ng5 Rxd4+ 45. Kc5 Rxf4
$16) (43. Rh7 $1 $16 {[%cal Rh7f7]}) 43... hxg5 $14 {[%emt 0:00:08]} 44. Nxg5 {
[%emt 0:01:31]} (44. Rh7 $1 $14) 44... Rxd4+ $11 {[%emt 0:00:08]} 45. Kc3 {
[%emt 0:01:31]} (45. Kc5 $2 Rg4 46. e6 (46. Nxf7 $2 Bc6 $19) 46... fxe6 47.
Nxe6+ Bxe6 $19) 45... Rg4 {[%emt 0:00:08][%csl Yg2,Yg5]} 46. Nxf7 {[%emt 0:00:
15]} d4+ {[%emt 0:00:46]} 47. Kc4 {[%emt 0:03:27]} f4 {[%emt 0:09:46]
Threatens to win with ...Be6+.} 48. Nd6 {[%emt 0:03:07]} (48. Kxd4 $2 f3+ 49.
Kd5 fxg2 $19) 48... Be6+ {[%emt 0:06:01]} 49. Kd3 {[%emt 0:00:00] Black must
now prevent Nb5+.} ({Wrong is} 49. Kxd4 $2 f3+ 50. Kc5 fxg2 51. Rh7+ Kb8 52.
Rxb7+ Ka8 $19) 49... Kc6 {[%emt 0:00:28] Inhibits Nb5.} 50. Ne4 {[%emt 0:03:47]
aiming for Rh6.} (50. Kxd4 f3+ 51. Kd3 fxg2 52. Rc8+ Bxc8 53. h3 Rg3+ 54. Kc2 {
[#]} g1=Q $1 55. Ne4 Bf5 56. Kb2 Bxe4 57. Ka3 Qc5+ 58. Kb2 Rg2+ 59. Ka1 Qxe5#)
({Of course not} 50. Rh6 Kd5 51. Ke2 d3+ 52. Kxd3 Rxg2 $15) 50... Rxg2 {
[%emt 0:00:34]} 51. Kxd4 {[%emt 0:00:00] Hoping for Rh6.} Bxb3 {[%emt 0:01:07]}
52. Rh6+ {[%emt 0:01:12]} Kc7 {[%emt 0:00:06]} 53. Rh7+ {[%emt 0:03:22]} Kc6 {
[%emt 0:00:05]} 54. Rh6+ {[%emt 0:00:27]} Kc7 {[%emt 0:00:00]} 55. Rh7+ {
[%emt 0:00:45]} Kc6 {[%emt 0:01:24]} 56. Rh6+ {[%emt 0:00:03]} Kc7 {[%emt 0:00:
13] Weighted Error Value: White=0.14 (very precise) /Black=0.16 (very precise)}
1/2-1/2

[Event "44th Chess Olympiad Open 2022"]
[Site "Chennai"]
[Date "2022.08.01"]
[Round "4.41"]
[White "Erfan Mohamad Firdaus"]
[Black "Koykka, Pekka"]
[Result "0-1"]
[WhiteElo "1294"]
[BlackElo "2361"]
[Annotator "TA"]
[PlyCount "56"]
[EventDate "2022.??.??"]
[TimeControl "60"]

{[%evp 9,56,-74,-66,-70,-50,-53,-72,-113,-91,-158,-134,-186,-182,-236,-240,
-250,-222,-243,-223,-381,-372,-542,-561,-602,-581,-602,-587,-755,-747,-851,
-707,-860,-857,-1071,-1037,-1281,-1068,-29988,-29989,-29989,-29990,-29993,
-5639,-1945,-1684,-1662,-1628,-1656,-1639]} 1. e4 {[%emt 0:00:13]} d5 {[%emt 0:
00:00]} 2. exd5 {[%emt 0:00:23]} Qxd5 {[%emt 0:00:08]} 3. d4 {[%emt 0:00:30]}
Nc6 {[%emt 0:06:19]} 4. c3 {[%emt 0:01:27]} e5 {[%emt 0:04:57]} 5. Qf3 {
[%emt 0:16:32] [#]} Be6 $146 {[%emt 0:09:48]} ({Predecessor:} 5... Nf6 6. Qxd5
Nxd5 7. Bc4 Be6 8. dxe5 Nxe5 9. Be2 Bd6 10. Nf3 O-O 11. Nxe5 Bxe5 12. O-O Nf4
13. Bxf4 Bxf4 14. Bf3 c6 15. Na3 Rad8 16. b3 {½-½ (16) Schillig,S (1695)
-Janeke,T (1695) Magdeburg 2020}) 6. Qxd5 {[%emt 0:03:32] B01: Scandinavian
Defence.} Bxd5 {[%emt 0:00:11]} 7. dxe5 {[%emt 0:01:25]} Nxe5 {[%emt 0:00:39]
[%cal Ye5d3]} 8. f3 {[%emt 0:05:48] Black is better.} O-O-O {[%emt 0:02:01]
Black is much more active.} 9. Be3 {[%emt 0:03:17]} (9. Bf4 $142) 9... Re8 {
[%emt 0:08:03][%cal Ye5g4]} 10. Kf2 {[%emt 0:01:25]} (10. Kd2 $17) 10... Nf6
$19 {[%emt 0:00:57]} 11. h3 {[%emt 0:01:34] [#] Prevents Neg4+.} (11. Be2 $142)
11... h5 $1 {[%emt 0:04:56][%cal Yh7h5,Yh5h4]} 12. Nd2 {[%emt 0:01:26] [#]} h4
$1 {[%emt 0:00:57] ...Nh5 is the strong threat.} 13. c4 {[%emt 0:02:26]} Bc6 {
[%emt 0:00:49] Strongly threatening ...Nh5.} 14. Be2 $2 {[%emt 0:10:08]} (14.
Bd4) 14... Nh5 {[%emt 0:05:38] aiming for ...Ng3.} 15. Nf1 {[%emt 0:23:12]
Against Ng3} (15. f4 {keeps fighting.} Ng3 16. Ngf3) 15... Ng6 {[%emt 0:03:51]
[%cal Yh5g3]} 16. Bd4 {[%emt 0:09:25]} Ngf4 {[%emt 0:06:12] Hoping for ...Rh6.}
17. Rd1 {[%emt 0:00:44]} Rh6 {[%emt 0:02:49]} 18. Bd3 {[%emt 0:02:20]} Rd6 {
[%emt 0:02:40]} 19. Bf5+ {[%emt 0:04:27]} Kb8 {[%emt 0:01:31][%cal Yd6d4]
White must now prevent ...Rxd4!} 20. b4 {[%emt 0:02:46]} Red8 {[%emt 0:01:10]}
21. Bxa7+ {[%emt 0:02:02]} Kxa7 {[%emt 0:00:18]} 22. Rb1 {[%emt 0:01:37]} Rd1 {
[%emt 0:00:41][%cal Yf8b4] ( -> ...Bxb4!)} 23. Rb3 {[%emt 0:00:29] [#]} Rxf1+
$1 {[%emt 0:01:20]} 24. Kxf1 {[%emt 0:00:37]} Ng3+ {[%emt 0:00:18]} 25. Ke1 {
[%emt 0:00:34]} Nxh1 {[%emt 0:00:24] Pair of Knights!} (25... Bxb4+ $142 26.
Rxb4 Nxg2+ 27. Kf2 Rd2+ 28. Ne2 Rxe2+ 29. Kg1 Ne1 30. Ra4+ Bxa4 31. Bh7 Nxf3#)
26. Ne2 {[%emt 0:00:56] Black is clearly winning.} Nxe2 {[%emt 0:00:25]} 27.
Kxe2 {[%emt 0:00:22]} Ng3+ {[%emt 0:00:08]} 28. Kf2 {[%emt 0:00:06]} Nxf5 {
[%emt 0:00:07] White got outplayed after the opening. Weighted Error Value:
White=1.04/Black=0.51} 0-1

[Event "44th Chess Olympiad Open 2022"]
[Site "Chennai"]
[Date "2022.08.01"]
[Round "4.42"]
[White "Tin, Jingyao"]
[Black "Mirzaad, S.wahabuddin"]
[Result "1-0"]
[WhiteElo "2552"]
[BlackElo "1999"]
[Annotator "TA"]
[PlyCount "67"]
[EventDate "2022.??.??"]
[TimeControl "60"]

{[%evp 12,67,-2,-23,57,59,70,50,69,65,71,86,78,75,147,167,289,299,287,295,290,
289,285,278,277,273,351,361,344,342,351,354,361,359,363,353,344,298,342,297,
364,355,345,333,397,398,984,981,955,948,1541,1598,29993,677,29992,29993,29993,
29994]} 1. d4 {[%emt 0:00:11]} d5 {[%emt 0:00:22]} 2. c4 {[%emt 0:00:13]} c6 {
[%emt 0:00:42]} 3. Nf3 {[%emt 0:00:10]} Nf6 {[%emt 0:00:17]} 4. Nc3 {[%emt 0:
00:00]} dxc4 {[%emt 0:01:37]} 5. a4 {[%emt 0:01:00]} Bf5 {[%emt 0:00:45]} 6.
Ne5 {[%emt 0:00:00]} e6 {[%emt 0:03:22]} 7. f3 {[%emt 0:01:58]} (7. g3 {
looks sharper.} c5 8. Bg2 cxd4 9. Bxb7 Qc7 10. Bxa8 Qxe5 11. Nb5) 7... h6 {
[%emt 0:02:55] D17: Slav Defence: 5 a4 Bf5: Lines with 6 Nh4 and 6 Ne5.} (7...
Bb4 $11) 8. e4 $14 {[%emt 0:01:10]} Bh7 {[%emt 0:00:09]} 9. Be3 {[%emt 0:02:17]
} Nbd7 {[%emt 0:00:36] White is slightly better.} 10. Nxc4 {[%emt 0:01:18]
White is more active.} (10. Bxc4 Nxe5 11. dxe5 Nd7 $11) 10... Bb4 {[%emt 0:00:
00]} 11. Be2 {[%emt 0:02:51]} O-O {[%emt 0:00:14]} 12. O-O {[%emt 0:01:46] [#]}
Qe7 $146 {[%emt 0:02:49] [#]} (12... Nb6 $142) ({Predecessor:} 12... a5 13. Qb3
c5 14. Rfd1 cxd4 15. Bxd4 Qe7 16. Na2 Bc5 17. Bxc5 Qxc5+ 18. Kh1 Rfd8 {½-½ 
(106) Plischki,S (2391)-Cerveny,M (2350) Czech Republic 2019}) 13. Na2 $1 $16 {
[%emt 0:02:52]} b5 {[%emt 0:10:28]} (13... Nb6 $142) 14. Nxb4 $18 {[%emt 0:00:
00]} Qxb4 {[%emt 0:00:38]} 15. Bd2 {[%emt 0:01:03]} Qe7 {[%emt 0:01:57]} 16.
Na5 {[%emt 0:00:33][%csl Yb5,Yc6]} Rfc8 {[%emt 0:10:48]} 17. axb5 {[%emt 0:00:
00]} cxb5 {[%emt 0:06:16]} 18. Bxb5 {[%emt 0:00:48]} Nb6 {[%emt 0:01:11]} 19.
Bc6 {[%emt 0:08:20]} (19. Nc6 Qd7 20. Qc2 a6 $18) 19... Qd6 {[%emt 0:10:07]}
20. Bxa8 {[%emt 0:00:56] A strong pair of Bishops.} Qxd4+ {[%emt 0:00:31]} 21.
Kh1 {[%emt 0:00:21]} Rxa8 {[%emt 0:00:04]} 22. Bc3 {[%emt 0:01:01]} Qc5 {
[%emt 0:00:55]} 23. Qd4 {[%emt 0:01:39]} Qc7 {[%emt 0:01:58]} 24. Rfd1 {
[%emt 0:00:43]} Ne8 {[%emt 0:02:57]} 25. Nb3 {[%emt 0:05:07]} f5 {[%emt 0:00:
00]} 26. Nc5 {[%emt 0:01:32]} fxe4 {[%emt 0:02:49]} 27. fxe4 {[%emt 0:01:21]} (
{Resist} 27. Nxe6 Qe7 28. Nf4 (28. fxe4 Qxe6 29. e5 Bc2 $11) 28... Qf7) 27...
Qc6 {[%emt 0:02:30]} 28. Qe5 {[%emt 0:02:03] [#] aiming for Rd3.} Nf6 $2 {
[%emt 0:02:22]} (28... Bg6 29. Ra6 Bf7) 29. Rd6 {[%emt 0:01:15]} Qc8 {[%emt 0:
00:00]} 30. Rxe6 {[%emt 0:02:15]} ({Weaker is} 30. Rxb6 axb6 31. Qxe6+ (31.
Rxa8 Qxa8 32. Qxe6+ Kh8 $11) 31... Kh8 32. Qxc8+ Rxc8 $11) 30... Qf8 {[%emt 0:
00:00]} 31. Rf1 {[%emt 0:02:47][%cal Re6f6] Intending Rexf6 and mate.} Rc8 {
[%emt 0:01:43]} 32. Re7 {[%emt 0:01:38]} (32. Rfxf6 $142 gxf6 33. Rxf6 Qg7 34.
Qe6+ Kh8 35. Rf7 Rg8 36. Qxh6 Nc8 37. Bxg7+ Rxg7 38. Qxg7#) 32... Bg6 {[%emt 0:
00:00]} 33. Rxf6 {[%emt 0:01:24]} gxf6 {[%emt 0:00:48]} 34. Qe6+ {[%emt 0:00:
00] Black did not feel at home in the position after the opening. Weighted
Error Value: White=0.36/Black=0.89} 1-0